bitfinex-derivatives/quotes_SOLF0:USTF0_20251210
["timestamp","ask_amount","ask_price","bid_price","bid_amount"]
[1765404571224,6.5458,137.46,137.41,3.13056812]
[1765404571416,8.8658,137.46,137.41,3.13056812]
[1765404572222,6.5449,137.48,137.43,6.5468]
[1765404572525,2.32,137.49,137.44,3.13143618]
[1765404572817,61.84,137.54,137.46,3.08]
[1765404573023,2.32,137.53,137.49,0.0498914]
[1765404573424,8.863,137.52,137.49,0.0498914]
[1765404573623,2.32,137.52,137.49,3.1298914]
[1765404574523,2.32,137.55,137.49,3.1298914]
[1765404574723,8.8623,137.53,137.49,3.1298914]
[1765404575431,6.5415,137.55,137.49,3.1298914]
[1765404576121,2.32,137.55,137.51,3.05]
[1765404577727,2.32,137.55,137.49,0.0498914]
[1765404577728,2.32,137.54,137.5,3.05]
[1765404578028,61.84,137.56,137.5,3.05]
[1765404578825,61.84,137.56,137.51,6.543]
[1765404579022,61.84,137.56,137.52,3.10418775]
[1765404579425,61.84,137.56,137.53,3.05]
[1765404579624,2.32,137.57,137.53,3.05]
[1765404580230,8.8603,137.57,137.53,3.05]
[1765404581732,2.32,137.57,137.53,3.05]
[1765404583433,6.5399,137.58,137.54,3.05]
[1765404584739,2.32,137.56,137.52,3.10418775]
[1765404585532,2.32,137.55,137.52,0.05418775]
[1765404587035,6.5417,137.54,137.52,0.05418775]
[1765404587239,2.32,137.58,137.52,3.10418775]
[1765404587435,8.8608,137.56,137.52,3.10418775]
[1765404589039,2.32,137.55,137.52,3.10418775]
[1765404589341,8.8601,137.58,137.52,9.64668775]
[1765404590136,2.32,137.56,137.53,3.05]
[1765404590337,2.32,137.56,137.53,3.10547366]
[1765404592233,6.5403,137.57,137.53,3.10547366]
[1765404592442,8.861,137.56,137.53,3.10547366]
[1765404592947,2.32,137.56,137.53,3.10547366]
[1765404595847,6.5403,137.57,137.53,0.05547366]
[1765404595848,2.32,137.54,137.53,0.05547366]
[1765404596959,8.8617,137.54,137.53,0.05547366]
[1765404598351,8.8609,137.56,137.53,3.10547366]
[1765404599848,8.8602,137.58,137.54,3.05]
[1765404600043,2.32,137.57,137.55,0.05103779]
[1765404601050,64.12,137.61,137.55,3.10103779]
[1765404601554,8.8589,137.6,137.56,9.5906]
[1765404601754,8.8589,137.6,137.56,3.05]
[1765404601949,2.32,137.59,137.56,3.05]
[1765404602149,2.32,137.6,137.56,9.5906]
[1765404602344,2.32,137.6,137.56,3.05]
[1765404602551,12.37755491,137.63,137.59,3.05]
[1765404602854,3.52015491,137.63,137.6,3.09963481]
[1765404603548,3.52015491,137.63,137.62,3.05]
[1765404604146,2.31,137.62,137.6,0.04963481]
[1765404604547,3.52015491,137.63,137.6,3.13963481]
[1765404605953,2.31,137.62,137.6,0.04963481]
[1765404606157,3.52015491,137.63,137.6,3.13963481]
[1765404606557,3.52015491,137.63,137.61,3.09]
[1765404607352,3.52015491,137.63,137.62,3.09]
[1765404609361,5.83015491,137.63,137.6,3.13963481]
[1765404610361,3.52015491,137.63,137.61,3.05]
[1765404610956,3.52015491,137.63,137.6,3.09963481]
[1765404611556,5.83015491,137.63,137.6,3.09963481]
[1765404611857,3.52015491,137.63,137.6,3.09963481]
[1765404613064,3.52015491,137.63,137.61,3.05]
[1765404613262,64.09,137.69,137.62,3.05]
[1765404613560,2.31,137.68,137.64,3.09967598]
[1765404613755,2.31,137.67,137.64,0.04967598]
[1765404613955,64.09,137.69,137.64,3.09967598]
[1765404614161,2.31,137.68,137.64,3.09967598]
[1765404614757,2.31,137.67,137.64,0.04967598]
[1765404615664,2.31,137.7,137.65,3.05]
[1765404615964,2.31,137.7,137.64,0.04967598]
[1765404616166,2.31,137.7,137.64,6.58637598]
[1765404616664,8.8451,137.68,137.64,0.04967598]
[1765404616857,8.8451,137.68,137.64,3.09967598]
[1765404617160,8.8457,137.67,137.64,3.09967598]
[1765404617364,2.31,137.69,137.64,3.09967598]
[1765404617559,2.31,137.69,137.64,0.04967598]
[1765404618467,2.31,137.65,137.64,0.04967598]
[1765404620972,2.26,137.62,137.58,9.5894]
[1765404621464,2.26,137.62,137.57,61.76]
[1765404621465,2.26,137.61,137.57,64.81]
[1765404621959,0.05071266,137.6,137.58,9.63830433]
[1765404623466,0.05071266,137.6,137.59,3.05]
[1765404624068,0.05071266,137.6,137.58,0.04860433]
[1765404624267,2.31071266,137.6,137.58,0.04860433]
[1765404624770,0.05071266,137.6,137.58,3.09860433]
[1765404625376,0.05071266,137.6,137.58,9.63830433]
[1765404626067,2.31071266,137.6,137.58,0.04860433]
[1765404626266,2.31071266,137.6,137.51,3.05]
[1765404626466,2.26,137.6,137.51,3.05]
[1765404627372,0.04741329,137.57,137.54,9.64695535]
[1765404627571,0.04741329,137.57,137.54,3.10535535]
[1765404628968,0.04741329,137.57,137.54,9.64675535]
[1765404629773,0.04741329,137.57,137.55,3.05]
[1765404630574,0.04741329,137.57,137.54,3.10535535]
[1765404633677,0.04741329,137.57,137.54,9.64685535]
[1765404633975,0.04741329,137.57,137.54,3.10535535]
[1765404634968,0.04741329,137.57,137.55,6.5411]
[1765404635168,0.04741329,137.57,137.56,3.15]
[1765404635573,0.04741329,137.57,137.55,9.6911]
[1765404635775,0.04741329,137.57,137.54,0.05535535]
[1765404635776,2.25741329,137.57,137.54,0.05535535]
[1765404636876,8.79771329,137.57,137.54,0.05535535]
[1765404639780,2.21,137.56,137.54,0.05535535]
[1765404640280,8.7508,137.56,137.54,0.05535535]
[1765404641475,6.5412,137.55,137.54,0.05535535]
[1765404641676,8.7512,137.55,137.54,0.05535535]
[1765404643984,8.7527,137.52,137.48,3.15]
[1765404644980,8.7527,137.52,137.48,9.6944]
[1765404645171,2.25641885,137.51,137.49,0.05402873]
[1765404645372,2.26193325,137.51,137.49,0.05402873]
[1765404648374,0.05193325,137.51,137.49,9.74792873]
[1765404648578,0.05193325,137.51,137.5,3.15]
[1765404648774,2.21,137.57,137.5,3.15]
[1765404649881,8.80289658,137.55,137.52,0.05374662]
[1765404651391,8.80289658,137.55,137.52,3.20374662]
[1765404652287,2.26159658,137.55,137.52,3.20374662]
[1765404652490,0.05159658,137.55,137.53,3.15]
[1765404653992,0.05159658,137.55,137.53,9.6921]
[1765404654699,0.05159658,137.55,137.54,3.15]
[1765404657696,13.0738,137.65,137.54,3.15]
[1765404657697,5.90805154,137.63,137.56,3.15]
[1765404658398,8.7483,137.62,137.58,3.15]
[1765404658582,0.04698967,137.61,137.59,0.04805]
[1765404658996,6.58558967,137.61,137.59,0.04805]
[1765404659202,8.79558967,137.61,137.59,0.04805]
[1765404659801,2.21,137.6,137.59,0.04805]
[1765404661487,6.58558967,137.61,137.59,0.04805]
[1765404661692,2.21,137.6,137.59,0.04805]
[1765404662696,2.21,137.6,137.51,64.78]
[1765404662697,2.21,137.56,137.52,9.6923]
[1765404662902,4.57727772,137.56,137.53,3.15]
[1765404663701,4.6233408,137.56,137.53,3.19826253]
[1765404663902,11.1641408,137.56,137.53,3.19826253]
[1765404664404,2.21,137.55,137.53,0.04826253]
[1765404665604,8.7512,137.55,137.53,0.04826253]
[1765404665806,4.57727772,137.54,137.53,0.04826253]
[1765404668799,2.21,137.54,137.53,0.04826253]
[1765404669000,4.57727772,137.54,137.53,0.04826253]
[1765404669399,2.21,137.51,137.47,3.36]
[1765404669600,4.57727772,137.5,137.47,3.36]
[1765404670409,4.62993251,137.5,137.47,3.41246506]
[1765404671210,4.57727772,137.48,137.47,0.05246506]
[1765404671797,2.21,137.47,137.41,3.22]
[1765404672009,2.36727772,137.44,137.41,3.22]
[1765404672707,0.04743762,137.44,137.41,3.27256123]
[1765404673806,2.25743762,137.44,137.41,3.27256123]
[1765404674202,8.80413762,137.44,137.41,0.05256123]
[1765404674403,2.21,137.43,137.41,0.05256123]
[1765404675114,6.59413762,137.44,137.41,0.05256123]
[1765404675309,8.80413762,137.44,137.41,0.05256123]
[1765404676513,2.21,137.43,137.41,0.05256123]
[1765404676902,2.21,137.42,137.41,0.05256123]
[1765404677599,2.21,137.4,137.35,3.22]
[1765404677807,2.21,137.4,137.32,3.22]
[1765404678622,0.04774347,137.37,137.36,3.22]
[1765404678812,0.04774347,137.37,137.35,0.05459991]
[1765404679003,0.04774347,137.37,137.35,3.27459991]
[1765404679209,0.04774347,137.37,137.35,9.82519991]
[1765404679416,0.04774347,137.37,137.36,3.22]
[1765404681219,2.21,137.43,137.38,3.22]
[1765404682219,0.05070684,137.42,137.39,3.26934469]
[1765404690223,0.05070684,137.42,137.39,9.81804469]
[1765404690529,0.05070684,137.42,137.4,3.22]
[1765404692022,0.05070684,137.42,137.4,9.7682]
[1765404692231,2.21,137.48,137.41,3.22]
[1765404692625,2.26,137.46,137.42,6.5474]
[1765404692828,4.63075828,137.46,137.41,3.22]
[1765404693240,0.05310975,137.45,137.42,3.26634624]
[1765404693722,2.42386803,137.45,137.42,3.26634624]
[1765404694434,0.05310975,137.45,137.42,3.26634624]
[1765404701239,0.05310975,137.45,137.43,3.2]
[1765404702243,4.69386803,137.45,137.42,0.04634624]
[1765404702448,4.69386803,137.45,137.42,3.24634624]
[1765404703041,4.64075828,137.43,137.42,0.04634624]
[1765404703339,4.64075828,137.43,137.38,3.2]
[1765404703538,2.37075828,137.4,137.36,3.2]
[1765404703936,2.27,137.39,137.36,3.2]
[1765404704149,2.37075828,137.38,137.35,65.04]
[1765404704338,4.64075828,137.38,137.35,3.2]
[1765404704540,4.69375709,137.38,137.35,3.25024736]
[1765404704742,11.24315709,137.38,137.35,3.25024736]
[1765404706450,4.69375709,137.38,137.35,3.25024736]
[1765404706637,2.42375709,137.38,137.35,3.25024736]
[1765404706844,0.05299881,137.38,137.35,3.25024736]
[1765404707239,0.05299881,137.38,137.37,3.2]
[1765404707546,2.32299881,137.38,137.35,0.05024736]
[1765404707750,2.37075828,137.36,137.35,0.05024736]
[1765404711759,2.37075828,137.37,137.35,0.05024736]
[1765404711951,2.37075828,137.37,137.35,3.25024736]
[1765404712145,0.05299881,137.38,137.35,0.05024736]
[1765404712452,0.05299881,137.38,137.35,3.25024736]
[1765404712453,2.32299881,137.38,137.35,3.25024736]
[1765404713044,0.05299881,137.38,137.35,3.25024736]
[1765404714251,2.32299881,137.38,137.35,3.25024736]
[1765404714754,11.24325709,137.38,137.35,3.25024736]
[1765404714951,2.27,137.37,137.35,0.05024736]
[1765404715755,2.32299881,137.38,137.35,3.25024736]
[1765404715951,2.32299881,137.38,137.35,0.05024736]
[1765404716144,4.69375709,137.38,137.35,0.05024736]
[1765404716342,11.19085828,137.37,137.35,0.05024736]
[1765404717149,6.551,137.35,137.31,61.84]
[1765404717342,11.19175828,137.35,137.31,65.04]
[1765404718050,2.37075828,137.35,137.32,3.2]
[1765404718251,2.41765144,137.35,137.32,3.25395993]
[1765404718447,0.04689316,137.35,137.32,3.25395993]
[1765404719055,2.31689316,137.35,137.32,3.25395993]
[1765404719255,11.23845144,137.35,137.32,0.05395993]
[1765404720146,4.64075828,137.33,137.32,0.05395993]
[1765404720544,6.5534,137.3,137.27,3.2]
[1765404721752,0.04623914,137.3,137.27,3.24709095]
[1765404722352,8.86953914,137.3,137.27,0.04709095]
[1765404722657,8.86953914,137.3,137.27,3.24709095]
[1765404725659,2.27,137.28,137.27,0.04709095]
[1765404726752,8.8246,137.27,137.23,3.3]
[1765404727859,2.31723254,137.26,137.24,0.05153687]
[1765404728063,8.87243254,137.26,137.24,0.05153687]
[1765404728259,2.27,137.25,137.24,0.05153687]
[1765404730058,2.27,137.25,137.21,3.35]
[1765404731162,2.27,137.25,137.22,0.05148366]
[1765404732457,0.04723254,137.26,137.22,3.40148366]
[1765404732959,0.04723254,137.26,137.24,9.9058]
[1765404733164,0.04723254,137.26,137.25,3.35]
[1765404733463,2.32,137.35,137.28,3.35]
[1765404733862,2.32,137.35,137.27,3.71241995]
[1765404733863,2.32,137.35,137.29,3.35]
[1765404734265,2.32,137.35,137.31,0.04706193]
[1765404734266,0.05150948,137.33,137.31,0.04706193]
[1765404734759,2.37150948,137.33,137.31,0.04706193]
[1765404734960,0.05150948,137.33,137.31,0.04706193]
[1765404737657,0.05150948,137.33,137.31,3.39706193]
[1765404739969,0.05150948,137.33,137.32,3.35]
[1765404743066,0.05150948,137.33,137.31,3.39706193]
[1765404748660,0.05150948,137.33,137.31,9.94966193]
[1765404749065,0.05150948,137.33,137.32,3.35]
[1765404751766,2.37150948,137.33,137.31,0.04706193]
[1765404754286,2.26,137.31,137.24,3.24]
[1765404754578,8.8146,137.27,137.24,3.24]
[1765404754876,3.7153995,137.33,137.24,3.24]
[1765404755177,2.26,137.32,137.24,3.24]
[1765404755378,0.05134284,137.29,137.27,3.29431211]
[1765404756578,0.05134284,137.29,137.27,0.05431211]
[1765404758570,0.05134284,137.29,137.27,3.29431211]
[1765404759578,2.31134284,137.29,137.27,0.05431211]
[1765404762078,6.02674234,137.29,137.27,0.05431211]
[1765404762280,2.26,137.28,137.27,0.05431211]
[1765404763377,0.05134284,137.29,137.27,3.29431211]
[1765404765077,0.05134284,137.29,137.28,3.24]
[1765404767688,0.05134284,137.29,137.27,0.05431211]
[1765404767885,0.05134284,137.29,137.27,3.29431211]
[1765404771485,2.26,137.28,137.27,0.05431211]
[1765404772587,3.76674234,137.29,137.27,3.29431211]
[1765404772788,0.05134284,137.29,137.27,3.29431211]
[1765404773081,2.21,137.24,137.21,9.03881809]
[1765404773287,2.21,137.24,137.19,3.24]
[1765404773673,101.9735,137.26,137.19,3.24]
[1765404773674,5.9253995,137.22,137.19,3.24]
[1765404773989,5.9253995,137.2,137.19,0.05272712]
[1765404774189,6.5588,137.19,137.13,3.24]
[1765404774383,3.7153995,137.18,137.13,3.24]
[1765404774588,5.9253995,137.18,137.13,3.24]
[1765404774784,8.7695,137.17,137.13,3.24]
[1765404775290,0.04972235,137.16,137.14,0.05192301]
[1765404776701,0.04972235,137.16,137.14,3.29192301]
[1765404780195,2.25972235,137.16,137.14,0.05192301]
[1765404781496,2.21,137.15,137.08,3.24]
[1765404781888,8.7713,137.13,137.08,3.24]
[1765404782595,0.05525346,137.12,137.09,3.29253942]
[1765404783292,2.21,137.1,137.09,0.05253942]
[1765404783492,2.26525346,137.12,137.09,3.29253942]
[1765404783698,2.26525346,137.12,137.09,0.05253942]
[1765404783996,2.21,137.11,137.09,0.05253942]
[1765404785283,2.21,137.1,137.09,0.05253942]
[1765404786893,6.5633,137.09,137.03,3.31]
[1765404787099,8.7733,137.09,137.03,3.31]
[1765404787693,8.7737,137.08,137.03,3.31]
[1765404788194,0.04661947,137.07,137.04,3.35941239]
[1765404788899,0.04661947,137.07,137.06,3.31]
[1765404790390,2.26661947,137.07,137.04,3.33941239]
[1765404790590,24.07,137.06,136.99,3.52015491]
[1765404790801,2.22,137.03,136.99,3.52015491]
[1765404791804,2.26769423,137.02,137.0,0.05483721]
[1765404792000,2.22,137.01,137.0,0.05483721]
[1765404792205,2.22,137.0,136.99,3.52015491]
[1765404792808,8.7874,137.0,136.99,4.804e-05]
[1765404793102,2.22,136.99,136.95,3.29]
[1765404793303,2.27192386,136.98,136.92,9.861]
[1765404793509,7.89443054,136.95,136.89,3.29]
[1765404793713,2.27305925,136.93,136.85,3.29]
[1765404793900,7.89443054,136.92,136.85,3.29]
[1765404794208,2.2755225,136.9,136.85,3.29]
[1765404794398,104.3995,136.98,136.89,3.29]
[1765404794717,6.5701,136.95,136.89,3.29]
[1765404794897,2.22,136.94,136.89,3.29]
[1765404795097,2.22,136.93,136.86,65.29]
[1765404795299,0.05190054,136.91,136.88,3.3379318]
[1765404800215,2.22,136.97,136.89,105.5304]
[1765404800417,2.22,136.97,136.9,3.29]
[1765404801326,0.04827761,136.95,136.92,0.04974311]
[1765404802420,6.5721,136.91,136.85,3.29]
[1765404802625,2.27,136.92,136.85,3.29]
[1765404802929,6.5725,136.9,136.85,3.29]
[1765404803128,2.27,136.92,136.85,3.29]
[1765404803334,0.04853101,136.9,136.87,0.04970345]
[1765404803828,2.31853101,136.9,136.87,0.04970345]
[1765404804331,2.27,136.88,136.87,0.04970345]
[1765404804514,6.5731,136.89,136.87,0.04970345]
[1765404804719,2.27,136.88,136.87,0.04970345]
[1765404805018,2.27,136.86,136.79,105.6054]
[1765404805227,2.27,136.86,136.8,3.29]
[1765404805820,8.8445,136.86,136.8,3.29]
[1765404806026,0.05014771,136.84,136.8,3.29]
[1765404806224,0.05014771,136.84,136.79,6.5773]
[1765404806225,2.27,136.82,136.73,3.29]
[1765404806422,2.27,136.82,136.76,3.29]
[1765404806627,0.0498514,136.79,136.76,3.29]
[1765404806925,2.3198514,136.79,136.74,6.5797]
[1765404807227,0.0498514,136.79,136.75,3.29]
[1765404807425,2.27,136.77,136.68,3.29]
[1765404807835,0.05123746,136.74,136.68,3.29]
[1765404808329,0.05123746,136.74,136.71,3.29]
[1765404809431,0.05123746,136.74,136.68,9.8726]
[1765404809637,0.04658339,136.72,136.68,3.29]
[1765404809827,8.8521,136.7,136.64,3.29]
[1765404810024,0.05165078,136.68,136.64,3.29]
[1765404810224,2.27,136.67,136.63,3.56533247]
[1765404810426,102.4309,136.64,136.57,3.29]
[1765404810636,2.27,136.61,136.5,105.8241]
[1765404810940,2.27,136.53,136.46,102.5615]
[1765404811236,2.27,136.48,136.4,3.29]
[1765404811421,102.5367,136.5,136.4,3.29]
[1765404811626,0.05576022,136.45,136.4,3.29]
[1765404812426,0.05576022,136.45,136.41,3.29]
[1765404812628,108.18153054,136.54,136.44,3.29]
[1765404813044,171.1888,136.55,136.44,3.29]
[1765404813241,2.27,136.56,136.47,3.29]
[1765404813733,0.04861725,136.53,136.5,0.0494409]
[1765404813938,102.4558,136.61,136.51,3.29]
[1765404814145,204.8088,136.68,136.56,3.25]
[1765404814333,110.41583054,136.67,136.56,3.25]
[1765404814528,104.7559,136.65,136.56,3.25]
[1765404814738,8.00443054,136.61,136.52,3.25]
[1765404815042,0.05032414,136.58,136.55,3.3002553]
[1765404815345,2.38032414,136.58,136.55,0.0502553]
[1765404815541,0.05032414,136.58,136.55,3.3002553]
[1765404815841,0.05032414,136.58,136.55,0.0502553]
[1765404816146,0.05032414,136.58,136.55,3.3002553]
[1765404816437,2.38032414,136.58,136.55,0.0502553]
[1765404816635,104.85862414,136.58,136.55,0.0502553]
[1765404816843,104.85862414,136.58,136.47,167.9645]
[1765404816844,104.85862414,136.58,136.47,3.25]
[1765404817027,111.4038,136.57,136.47,3.25]
[1765404817436,5.67443054,136.56,136.47,3.25]
[1765404817835,0.0547769,136.53,136.5,0.054297]
[1765404818030,2.33,136.52,136.5,0.054297]
[1765404818334,104.8682,136.5,136.39,3.25]
[1765404818536,8.00443054,136.5,136.4,105.8531]
[1765404819233,0.05291596,136.46,136.43,105.8338]
[1765404819533,0.05123978,136.46,136.44,3.25]
[1765404819936,62.16,136.53,136.45,105.8188]
[1765404820127,1.27486537,136.56,136.49,3.25]
[1765404820536,62.18,136.6,136.51,3.25]
[1765404821038,2.37709301,136.57,136.54,0.04833747]
[1765404821229,2.33,136.56,136.54,0.04833747]
[1765404821636,0.04709301,136.57,136.54,0.04833747]
[1765404821835,2.33,136.55,136.54,0.04833747]
[1765404822039,2.37709301,136.57,136.54,0.04833747]
[1765404822341,2.33,136.55,136.54,0.04833747]
[1765404822639,2.33,136.55,136.47,3.25]
[1765404823032,102.4876,136.57,136.47,3.25]
[1765404823233,6.588,136.58,136.48,3.25]
[1765404823542,0.05080912,136.54,136.48,3.25]
[1765404825239,62.18,136.6,136.51,3.25]
[1765404825641,1.27444518,136.61,136.52,3.25]
[1765404825945,5.67443054,136.62,136.53,3.25]
[1765404826140,0.04724444,136.59,136.56,0.04827596]
[1765404826534,2.42724444,136.59,136.56,0.04827596]
[1765404826736,2.38,136.57,136.56,0.04827596]
[1765404826946,104.8656,136.57,136.49,3.25]
[1765404827643,2.38,136.57,136.49,3.25]
[1765404827839,104.8674,136.57,136.49,3.25]
[1765404828045,0.05416274,136.54,136.49,3.25]
[1765404828440,0.05416274,136.54,136.5,3.25]
[1765404828643,62.22,136.6,136.52,3.25]
[1765404828939,27.52443054,136.62,136.54,3.25]
[1765404829137,2.43,136.55,136.43,102.582]
[1765404829337,2.43,136.49,136.4,6.5962]
[1765404829537,5.67443054,136.47,136.39,3.25]
[1765404829746,5.67443054,136.47,136.42,0.04966991]
[1765404829747,0.05318652,136.44,136.42,0.04966991]
[1765404830743,0.05318652,136.44,136.37,105.8821]
[1765404830944,0.05318652,136.44,136.4,3.25]
[1765404831450,0.05318652,136.44,136.4,9.8459]
[1765404831644,0.05318652,136.44,136.41,3.27071684]
[1765404834653,6.5915,136.51,136.42,3.25]
[1765404834946,2.38,136.52,136.4,105.8575]
[1765404835241,5.67443054,136.53,136.43,3.25]
[1765404835446,2.44,136.54,136.45,3.25]
[1765404835644,2.44,136.54,136.48,3.29659728]
[1765404835645,0.05520872,136.51,136.48,3.29659728]
[1765404836036,2.44,136.58,136.48,3.29659728]
[1765404836234,6.5877,136.58,136.51,3.25]
[1765404836444,164.7036,136.6,136.51,3.25]
[1765404836445,62.24,136.6,136.51,3.25]
[1765404836745,8.16443054,136.62,136.52,3.25]
[1765404836947,104.9503,136.6,136.52,65.51]
[1765404837144,0.04855557,136.57,136.55,0.05022781]
[1765404837346,2.53855557,136.57,136.55,0.05022781]
[1765404837544,9.12705557,136.57,136.55,0.05022781]
[1765404837743,6.63705557,136.57,136.55,0.05022781]
[1765404838048,0.04855557,136.57,136.55,0.05022781]
[1765404838448,105.02155557,136.57,136.55,0.05022781]
[1765404838750,9.12705557,136.57,136.55,0.05022781]
[1765404839050,0.04855557,136.57,136.55,0.05022781]
[1765404839248,111.60975557,136.57,136.55,0.05022781]
[1765404839448,6.63695557,136.57,136.55,0.05022781]
[1765404839648,111.60975557,136.57,136.55,0.05022781]
[1765404840046,102.5016,136.55,136.46,65.51]
[1765404840253,104.9854,136.56,136.47,3.25]
[1765404840254,110.65983054,136.56,136.47,3.25]
[1765404840461,6.5898,136.54,136.47,3.25]
[1765404840849,102.5136,136.53,136.44,65.51]
[1765404841050,0.04940684,136.5,136.47,0.0515275]
[1765404841349,2.49,136.49,136.47,0.0515275]
[1765404841549,102.5843,136.44,136.36,3.25]
[1765404841757,102.5827,136.44,136.36,3.25]
[1765404841951,102.5958,136.42,136.36,3.25]
[1765404842154,104.9941,136.48,136.37,3.25]
[1765404842349,62.24,136.5,136.39,3.25]
[1765404842653,0.05155513,136.46,136.43,0.02735677]
[1765404843046,105.0129,136.45,136.43,0.02735677]
[1765404843249,2.49155513,136.46,136.43,0.02735677]
[1765404843554,2.44,136.45,136.43,0.02735677]
[1765404843851,6.5942,136.45,136.43,0.02735677]
[1765404844150,9.0342,136.45,136.43,0.02735677]
[1765404844345,2.44,136.44,136.43,0.02735677]
[1765404844548,108.29618567,136.46,136.36,3.23]
[1765404844745,105.0151,136.45,136.36,3.23]
[1765404844952,2.44,136.45,136.37,3.23]
[1765404845252,102.5533,136.48,136.38,3.23]
[1765404845453,2.44,136.49,136.39,9.8266]
[1765404845652,0.05037638,136.44,136.4,3.23]
[1765404846555,102.5217,136.52,136.41,3.27943701]
[1765404846750,102.5217,136.52,136.41,3.23]
[1765404846951,6.5916,136.5,136.42,9.8251]
[1765404847449,102.5147,136.53,136.45,0.04671614]
[1765404847647,102.5203,136.52,136.46,3.23]
[1765404847852,0.05253365,136.5,136.48,0.04644362]
[1765404848151,6.64423365,136.5,136.48,0.04644362]
[1765404848452,2.49,136.49,136.48,0.04644362]
[1765404848652,6.5941,136.45,136.38,9.827]
[1765404848858,102.5759,136.45,136.38,3.23]
[1765404849346,6.5952,136.43,136.38,3.23]
[1765404849548,0.05277862,136.42,136.38,3.23]
[1765404849753,102.5353,136.5,136.39,3.18]
[1765404850050,105.0109,136.55,136.43,3.18]
[1765404850254,5.34083823,136.54,136.44,3.18]
[1765404850642,5.34083823,136.54,136.48,0.05494427]
[1765404850842,0.05191598,136.5,136.48,0.05494427]
[1765404851251,2.56191598,136.5,136.48,0.05494427]
[1765404851553,0.05191598,136.5,136.48,3.23494427]
[1765404851956,0.05191598,136.5,136.48,0.05494427]
[1765404852153,6.64361598,136.5,136.48,0.05494427]
[1765404852351,7.87666916,136.49,136.48,0.05494427]
[1765404852854,5.36666916,136.49,136.48,0.05494427]
[1765404853057,0.05191598,136.5,136.48,0.05494427]
[1765404853260,5.37628804,136.49,136.48,0.05494427]
[1765404853559,5.37628804,136.49,136.48,3.23494427]
[1765404853855,6.45777818,136.56,136.48,3.23494427]
[1765404854157,11.83640918,136.55,136.48,3.23494427]
[1765404854361,11.83640918,136.54,136.48,3.18]
[1765404854559,5.378631,136.53,136.48,3.18]
[1765404854861,6.45777818,136.59,136.51,3.18]
[1765404855051,5.38353447,136.58,136.52,3.18]
[1765404855249,5.38353447,136.57,136.52,3.18]
[1765404855451,5.38353447,136.56,136.52,3.18]
[1765404855652,5.38353447,136.55,136.52,3.18]
[1765404855963,5.38353447,136.54,136.52,3.22701488]
[1765404856253,5.36129563,136.53,136.52,3.22701488]
[1765404856853,0.05579081,136.55,136.52,3.22701488]
[1765404857059,5.36012604,136.54,136.52,0.04701488]
[1765404857252,0.05579081,136.55,136.52,3.22701488]
[1765404857450,5.35694391,136.54,136.52,3.22701488]
[1765404857762,5.35631449,136.53,136.52,0.04701488]
[1765404858151,7.91631449,136.53,136.47,3.18]
[1765404858354,11.81409267,136.52,136.44,3.18]
[1765404858547,5.35631449,136.51,136.44,3.18]
[1765404858752,5.35631449,136.5,136.46,3.18]
[1765404858952,6.45777818,136.54,136.46,3.18]
[1765404859155,5.35565394,136.53,136.46,3.18]
[1765404859363,0.05589441,136.51,136.49,3.2341538]
[1765404861772,5.19176581,136.54,136.5,3.18]
[1765404861964,111.53337818,136.61,136.51,3.18]
[1765404862175,5.1916284,136.6,136.51,3.18]
[1765404862358,6.5869,136.6,136.53,6.5898]
[1765404862977,0.05211307,136.58,136.55,0.04644954]
[1765404863373,2.67211307,136.58,136.55,0.04644954]
[1765404863663,9.2083,136.57,136.55,0.04644954]
[1765404863862,9.2083,136.57,136.46,102.5589]
[1765404863863,102.4986,136.55,136.47,3.18]
[1765404864061,2.62,136.56,136.47,3.18]
[1765404864456,2.62,136.56,136.49,9.7718]